[Event "Hungarian Rapid-ch 2022"]
[Site "Ajka"]
[Date "2022.07.16"]
[Round "5.14"]
[White "Meszaros, Tamas"]
[Black "Kassay, Krisztian"]
[Result "1/2-1/2"]
[ECO "B07"]
[WhiteElo "2368"]
[BlackElo "2157"]
[Annotator "ChessBase"]
[PlyCount "72"]
[EventDate "2022.07.15"]
[EventType "swiss"]
[EventCountry "HUN"]
[SourceTitle "playchess.com"]
[Source "ChessBase"]
[SourceQuality "1"]
[TimeControl "900+10"]

1. e4 {[%emt 0:00:13]} d6 {[%emt 0:00:14]} 2. d4 {[%emt 0:00:02]} Nf6 {[%emt 0:00:03]} 3. Nc3 {[%emt 0:00:02]} Nbd7 {[%emt 0:00:05]} 4. Nf3 {[%emt 0:00:36]} e5 {[%emt 0:00:02]} 5. Bc4 {[%emt 0:00:03]} Be7 {[%emt 0:00:03]} 6. O-O {[%emt 0:00:02]} O-O {[%emt 0:00:04]} 7. a4 {[%emt 0:00:10]} a5 {[%emt 0:00:05]} 8. h3 {[%emt 0:01:02]} c6 {[%emt 0:00:15]} 9. Re1 {[%emt 0:00:10]} Qc7 {[%emt 0:00:29]} 10. Bg5 {[%emt 0:01:43]} Re8 {[%emt 0:00:56]} 11. Qd2 {[%emt 0:00:25]} Nf8 {[%emt 0:00:18]} 12. Rad1 {[%emt 0:05:10]} Ng6 {[%emt 0:02:33]} 13. Nh4 {[%emt 0:01:24]} Nxh4 {[%emt 0:02:04]} 14. Bxh4 {[%emt 0:00:02]} Nh5 {[%emt 0:01:31]} 15. Bxe7 {[%emt 0:00:40]} Qxe7 {[%emt 0:00:02]} 16. Bf1 {[%emt 0:02:47]} Nf4 {[%emt 0:01:54]} 17. Kh2 {[%emt 0:01:05]} h5 {[%emt 0:01:52]} 18. g3 {[%emt 0:00:12]} Ng6 {[%emt 0:00:10]} 19. h4 {[%emt 0:00:27]} Nxh4 {[%emt 0:01:41]} 20. gxh4 {[%emt 0:00:50]} Qxh4+ {[%emt 0:00:01]} 21. Kg1 {[%emt 0:00:01]} Re6 {[%emt 0:00:29]} 22. Re3 {[%emt 0:01:09]} exd4 {[%emt 0:01:29]} 23. Qxd4 {[%emt 0:00:01]} Rg6+ {[%emt 0:00:02]} 24. Bg2 {[%emt 0:00:11]} Bh3 {[%emt 0:00:19]} 25. Rg3 {[%emt 0:00:01]} Rxg3 {[%emt 0:01:44]} 26. fxg3 {[%emt 0:00:02]} Qxg3 {[%emt 0:00:02]} 27. Qf2 {[%emt 0:00:01]} Qg5 {[%emt 0:00:18]} 28. Kh2 {[%emt 0:00:48]} Bg4 {[%emt 0:00:35]} 29. Rxd6 {[%emt 0:00:07]} Re8 {[%emt 0:00:01]} 30. Rd3 {[%emt 0:00:14]} Re6 {[%emt 0:00:13]} 31. Bh3 {[%emt 0:00:27]} Rf6 {[%emt 0:00:07]} 32. Qg3 {[%emt 0:00:10]} Qc1 {[%emt 0:00:36]} 33. Rd8+ {[%emt 0:00:02]} Kh7 {[%emt 0:00:01]} 34. Bxg4 {[%emt 0:00:04]} hxg4 {[%emt 0:00:10]} 35. Qd3 {[%emt 0:00:25]} Rf2+ {[%emt 0:00:07]} 36. Kg3 {[%emt 0:00:04]} Qf4+ {[%emt 0:00:01]} 1/2-1/2

[Event "Hungarian Rapid-ch 2022"]
[Site "Ajka"]
[Date "2022.07.16"]
[Round "5.15"]
[White "Csonka, Balazs"]
[Black "Gelle, Istvan"]
[Result "1-0"]
[ECO "D15"]
[WhiteElo "2495"]
[BlackElo "2218"]
[Annotator "ChessBase"]
[PlyCount "121"]
[EventDate "2022.07.15"]
[EventType "swiss"]
[EventCountry "HUN"]
[SourceTitle "playchess.com"]
[Source "ChessBase"]
[SourceQuality "1"]
[TimeControl "900+10"]

1. d4 {[%emt 0:00:13]} d5 {[%emt 0:00:12]} 2. Nf3 {[%emt 0:00:02]} c6 {[%emt 0:00:01]} 3. c4 {[%emt 0:00:03]} Nf6 {[%emt 0:00:02]} 4. Nc3 {[%emt 0:00:01]} a6 {[%emt 0:00:02]} 5. Qc2 {[%emt 0:00:03]} g6 {[%emt 0:00:49]} 6. e4 {[%emt 0:00:46]} dxe4 {[%emt 0:00:57]} 7. Nxe4 {[%emt 0:00:03]} Bg7 {[%emt 0:01:00]} 8. Be2 {[%emt 0:00:58]} O-O {[%emt 0:00:14]} 9. O-O {[%emt 0:00:04]} Nbd7 {[%emt 0:00:24]} 10. Rd1 {[%emt 0:00:56]} Qc7 {[%emt 0:02:39]} 11. Bg5 {[%emt 0:00:47]} h6 {[%emt 0:01:40]} 12. Bh4 {[%emt 0:00:19]} Re8 {[%emt 0:02:06]} 13. Bg3 {[%emt 0:02:31]} Qa5 {[%emt 0:00:13]} 14. Ned2 {[%emt 0:00:49]} Nh5 {[%emt 0:01:55]} 15. c5 {[%emt 0:00:37]} Nxg3 {[%emt 0:00:27]} 16. hxg3 {[%emt 0:00:02]} Qc7 {[%emt 0:01:31]} 17. Bc4 {[%emt 0:00:46]} b5 {[%emt 0:01:33]} 18. Bb3 {[%emt 0:01:23]} Nf8 {[%emt 0:00:03]} 19. Re1 {[%emt 0:00:46]} Be6 {[%emt 0:00:18]} 20. Bxe6 {[%emt 0:00:23]} Nxe6 {[%emt 0:00:01]} 21. Rxe6 {[%emt 0:00:01]} fxe6 {[%emt 0:00:09]} 22. Qxg6 {[%emt 0:00:04]} Rf8 {[%emt 0:01:31]} 23. Ne4 {[%emt 0:01:15]} Rf6 {[%emt 0:00:44]} 24. Nxf6+ {[%emt 0:00:16]} exf6 {[%emt 0:00:01]} 25. Re1 {[%emt 0:00:39]} Qd7 {[%emt 0:00:03]} 26. Qe4 {[%emt 0:01:21]} Kf7 {[%emt 0:00:31]} 27. g4 {[%emt 0:00:25]} Qd5 {[%emt 0:00:08]} 28. Qxd5 {[%emt 0:00:35]} exd5 {[%emt 0:00:02]} 29. Nh4 {[%emt 0:00:10]} Re8 {[%emt 0:00:03]} 30. Rxe8 {[%emt 0:01:54]} Kxe8 {[%emt 0:00:02]} 31. f3 {[%emt 0:00:10]} Kf7 {[%emt 0:00:20]} 32. Kf2 {[%emt 0:00:01]} Bf8 {[%emt 0:00:33]} 33. Ke3 {[%emt 0:00:06]} Ke6 {[%emt 0:00:13]} 34. b4 {[%emt 0:00:55]} Be7 {[%emt 0:00:02]} 35. Kf4 {[%emt 0:00:29]} Bd8 {[%emt 0:00:07]} 36. Nf5 {[%emt 0:00:08]} Bc7+ {[%emt 0:00:03]} 37. Ke3 {[%emt 0:00:02]} a5 {[%emt 0:00:20]} 38. bxa5 {[%emt 0:00:14]} Bxa5 {[%emt 0:00:01]} 39. Nxh6 {[%emt 0:00:04]} Bc3 {[%emt 0:00:21]} 40. Kd3 {[%emt 0:00:09]} Bb2 {[%emt 0:00:11]} 41. Nf5 {[%emt 0:00:12]} Bc1 {[%emt 0:00:06]} 42. Kc2 {[%emt 0:00:14]} Bf4 {[%emt 0:00:08]} 43. Kb3 {[%emt 0:00:09]} Bd2 {[%emt 0:00:12]} 44. a4 {[%emt 0:00:09]} bxa4+ {[%emt 0:00:09]} 45. Kxa4 {[%emt 0:00:01]} Kf7 {[%emt 0:00:18]} 46. Kb3 {[%emt 0:00:44]} Ke6 {[%emt 0:00:01]} 47. Kc2 {[%emt 0:00:01]} Bf4 {[%emt 0:00:16]} 48. Kd3 {[%emt 0:00:06]} Bc1 {[%emt 0:00:07]} 49. Ne3 {[%emt 0:00:09]} Bb2 {[%emt 0:00:17]} 50. Nc2 {[%emt 0:00:37]} Kd7 {[%emt 0:00:11]} 51. f4 {[%emt 0:00:23]} Bc1 {[%emt 0:00:07]} 52. g3 {[%emt 0:00:03]} Ke6 {[%emt 0:00:06]} 53. Ne1 {[%emt 0:00:09]} Bb2 {[%emt 0:00:08]} 54. Nf3 {[%emt 0:00:03]} Bc1 {[%emt 0:00:07]} 55. Nd2 {[%emt 0:00:17]} Bb2 {[%emt 0:00:06]} 56. Nb3 {[%emt 0:00:03]} Kd7 {[%emt 0:00:15]} 57. Kc2 {[%emt 0:00:14]} Ba3 {[%emt 0:00:04]} 58. Nc1 {[%emt 0:00:32]} Bb4 {[%emt 0:00:21]} 59. Nd3 {[%emt 0:00:02]} Ba5 {[%emt 0:00:04]} 60. g5 {[%emt 0:00:07]} fxg5 {[%emt 0:00:13]} 61. Ne5+ {[%emt 0:00:09]} 1-0

[Event "Hungarian Rapid-ch 2022"]
[Site "Ajka"]
[Date "2022.07.16"]
[Round "5.16"]
[White "Molnar, Aurel Jr."]
[Black "Csiszar, Csaba"]
[Result "0-1"]
[ECO "B32"]
[WhiteElo "2014"]
[BlackElo "2389"]
[Annotator "ChessBase"]
[PlyCount "66"]
[EventDate "2022.07.15"]
[EventType "swiss"]
[EventCountry "HUN"]
[SourceTitle "playchess.com"]
[Source "ChessBase"]
[SourceQuality "1"]
[TimeControl "900+10"]

1. e4 {[%emt 0:00:13]} c5 {[%emt 0:00:11]} 2. Nf3 {[%emt 0:00:01]} Nc6 {[%emt 0:00:02]} 3. d4 {[%emt 0:00:02]} cxd4 {[%emt 0:00:01]} 4. Nxd4 {[%emt 0:00:02]} e5 {[%emt 0:00:02]} 5. Nb5 {[%emt 0:00:04]} d6 {[%emt 0:00:02]} 6. N1c3 {[%emt 0:00:02]} a6 {[%emt 0:00:01]} 7. Na3 {[%emt 0:00:03]} b5 {[%emt 0:00:01]} 8. Nd5 {[%emt 0:00:02]} Nge7 {[%emt 0:00:02]} 9. c4 {[%emt 0:00:07]} Nxd5 {[%emt 0:00:03]} 10. exd5 {[%emt 0:00:10]} Nd4 {[%emt 0:00:03]} 11. cxb5 {[%emt 0:00:02]} g6 {[%emt 0:00:08]} 12. Be3 {[%emt 0:00:51]} Bg7 {[%emt 0:00:05]} 13. Bd3 {[%emt 0:01:14]} O-O {[%emt 0:00:03]} 14. O-O {[%emt 0:00:24]} Nf5 {[%emt 0:00:52]} 15. Bxf5 {[%emt 0:04:21]} Bxf5 {[%emt 0:00:05]} 16. b6 {[%emt 0:00:38]} Bd7 {[%emt 0:00:29]} 17. Rc1 {[%emt 0:01:36]} f5 {[%emt 0:00:06]} 18. f3 {[%emt 0:00:49]} f4 {[%emt 0:01:39]} 19. Bf2 {[%emt 0:00:05]} e4 {[%emt 0:00:17]} 20. Bd4 {[%emt 0:00:53]} exf3 {[%emt 0:03:07]} 21. Rxf3 {[%emt 0:03:13]} Bg4 {[%emt 0:01:06]} 22. Rc7 {[%emt 0:00:09]} Bf6 {[%emt 0:01:01]} 23. Nc4 {[%emt 0:01:39]} Bxf3 {[%emt 0:02:17]} 24. gxf3 {[%emt 0:00:02]} Re8 {[%emt 0:03:07]} 25. Qd2 {[%emt 0:00:26]} Bxd4+ {[%emt 0:01:04]} 26. Qxd4 {[%emt 0:00:02]} Re1+ {[%emt 0:00:02]} 27. Kg2 {[%emt 0:00:58]} Qg5+ {[%emt 0:00:01]} 28. Kh3 {[%emt 0:00:15]} Qh6+ {[%emt 0:00:01]} 29. Kg2 {[%emt 0:00:06]} Rae8 {[%emt 0:00:02]} 30. b7 {[%emt 0:01:22]} R8e2+ {[%emt 0:00:38]} 31. Qf2 {[%emt 0:00:01]} Rxf2+ {[%emt 0:00:07]} 32. Kxf2 {[%emt 0:00:02]} Qh4+ {[%emt 0:00:00]} 33. Kg2 {[%emt 0:00:04]} Re2+ {[%emt 0:00:06]} 0-1

[Event "Hungarian Rapid-ch 2022"]
[Site "Ajka"]
[Date "2022.07.16"]
[Round "5.17"]
[White "Kelemen, David"]
[Black "Leviczky, Tibor"]
[Result "1/2-1/2"]
[ECO "B43"]
[WhiteElo "2136"]
[BlackElo "2281"]
[Annotator "ChessBase"]
[PlyCount "96"]
[EventDate "2022.07.15"]
[EventType "swiss"]
[EventCountry "HUN"]
[SourceTitle "playchess.com"]
[Source "ChessBase"]
[SourceQuality "1"]
[TimeControl "900+10"]

1. e4 {[%emt 0:00:11]} c5 {[%emt 0:00:12]} 2. Nf3 {[%emt 0:00:02]} e6 {[%emt 0:00:01]} 3. Nc3 {[%emt 0:00:03]} a6 {[%emt 0:00:02]} 4. d4 {[%emt 0:00:03]} cxd4 {[%emt 0:00:01]} 5. Nxd4 {[%emt 0:00:02]} Qc7 {[%emt 0:00:03]} 6. Bd3 {[%emt 0:00:09]} Nf6 {[%emt 0:00:02]} 7. Bd2 {[%emt 0:00:19]} d6 {[%emt 0:00:11]} 8. O-O {[%emt 0:00:04]} Nbd7 {[%emt 0:00:04]} 9. Kh1 {[%emt 0:00:09]} Be7 {[%emt 0:00:05]} 10. Qe2 {[%emt 0:00:02]} b5 {[%emt 0:00:10]} 11. f4 {[%emt 0:00:09]} Bb7 {[%emt 0:00:02]} 12. Rae1 {[%emt 0:00:47]} Nc5 {[%emt 0:00:08]} 13. b4 {[%emt 0:01:11]} Nxd3 {[%emt 0:00:26]} 14. cxd3 {[%emt 0:00:02]} O-O {[%emt 0:00:03]} 15. Rc1 {[%emt 0:00:31]} Qd8 {[%emt 0:00:40]} 16. a4 {[%emt 0:02:01]} bxa4 {[%emt 0:01:23]} 17. Nxa4 {[%emt 0:00:03]} Rc8 {[%emt 0:00:36]} 18. Be3 {[%emt 0:01:48]} Nd7 {[%emt 0:01:11]} 19. Qb2 {[%emt 0:02:09]} Bf6 {[%emt 0:00:56]} 20. Qb3 {[%emt 0:00:32]} Qe7 {[%emt 0:00:59]} 21. g4 {[%emt 0:01:40]} Bxd4 {[%emt 0:05:59]} 22. Bxd4 {[%emt 0:00:01]} e5 {[%emt 0:00:03]} 23. Bb2 {[%emt 0:00:55]} d5 {[%emt 0:00:36]} 24. Nc3 {[%emt 0:02:06]} dxe4 {[%emt 0:00:14]} 25. dxe4 {[%emt 0:00:03]} exf4 {[%emt 0:00:09]} 26. Rce1 {[%emt 0:00:54]} Nb6 {[%emt 0:01:55]} 27. Rxf4 {[%emt 0:00:47]} Nc4 {[%emt 0:01:05]} 28. Ba1 {[%emt 0:00:02]} Qe6 {[%emt 0:00:15]} 29. Qd1 {[%emt 0:01:36]} Rfd8 {[%emt 0:00:23]} 30. Qf3 {[%emt 0:00:12]} Ne5 {[%emt 0:00:15]} 31. Qe3 {[%emt 0:00:56]} Nd3 {[%emt 0:00:15]} 32. Ref1 {[%emt 0:00:02]} Nxf4 {[%emt 0:00:02]} 33. Qxf4 {[%emt 0:00:03]} f6 {[%emt 0:00:26]} 34. Re1 {[%emt 0:00:11]} Rd3 {[%emt 0:00:11]} 35. Na4 {[%emt 0:00:20]} Qd6 {[%emt 0:00:20]} 36. Qxd6 {[%emt 0:00:28]} Rxd6 {[%emt 0:00:01]} 37. Nc5 {[%emt 0:00:01]} Ba8 {[%emt 0:00:15]} 38. Kg2 {[%emt 0:00:06]} a5 {[%emt 0:00:19]} 39. Bc3 {[%emt 0:00:30]} axb4 {[%emt 0:00:03]} 40. Bxb4 {[%emt 0:00:01]} Rd4 {[%emt 0:00:05]} 41. Ba3 {[%emt 0:00:02]} Rc4 {[%emt 0:00:12]} 42. Rd1 {[%emt 0:00:30]} Bxe4+ {[%emt 0:00:08]} 43. Nxe4 {[%emt 0:00:02]} Rxe4 {[%emt 0:00:01]} 44. Kf3 {[%emt 0:00:14]} Ra4 {[%emt 0:00:21]} 45. Rd3 {[%emt 0:00:09]} Re8 {[%emt 0:00:12]} 46. h4 {[%emt 0:00:04]} h5 {[%emt 0:00:14]} 47. g5 {[%emt 0:00:09]} Rxh4 {[%emt 0:00:07]} 48. gxf6 {[%emt 0:00:17]} Rh3+ {[%emt 0:00:03]} 1/2-1/2

[Event "Hungarian Rapid-ch 2022"]
[Site "Ajka"]
[Date "2022.07.16"]
[Round "5.18"]
[White "Laszlo, Csaba"]
[Black "Krstulovic, Alex"]
[Result "0-1"]
[ECO "B02"]
[WhiteElo "1957"]
[BlackElo "2413"]
[Annotator "ChessBase"]
[PlyCount "118"]
[EventDate "2022.07.15"]
[EventType "swiss"]
[EventCountry "HUN"]
[SourceTitle "playchess.com"]
[Source "ChessBase"]
[SourceQuality "1"]
[TimeControl "900+10"]

1. e4 {[%emt 0:00:12]} Nf6 {[%emt 0:00:11]} 2. e5 {[%emt 0:00:02]} Ng8 {[%emt 0:00:01]} 3. Nf3 {[%emt 0:00:03]} d6 {[%emt 0:00:00]} 4. d4 {[%emt 0:00:16]} Bg4 {[%emt 0:00:02]} 5. Be2 {[%emt 0:00:09]} e6 {[%emt 0:00:03]} 6. O-O {[%emt 0:00:05]} dxe5 {[%emt 0:00:11]} 7. dxe5 {[%emt 0:00:04]} Nc6 {[%emt 0:00:15]} 8. h3 {[%emt 0:00:48]} Qxd1 {[%emt 0:00:17]} 9. Rxd1 {[%emt 0:00:01]} Bf5 {[%emt 0:00:03]} 10. c3 {[%emt 0:01:06]} Nge7 {[%emt 0:00:11]} 11. Bf4 {[%emt 0:00:36]} h6 {[%emt 0:00:06]} 12. Nd4 {[%emt 0:02:14]} Nxd4 {[%emt 0:00:14]} 13. Rxd4 {[%emt 0:00:07]} g5 {[%emt 0:00:09]} 14. Bg3 {[%emt 0:00:47]} a6 {[%emt 0:00:07]} 15. Bf3 {[%emt 0:00:25]} Bxb1 {[%emt 0:01:37]} 16. Rxb1 Rb8 17. Rbd1 {[%emt 0:00:32]} Nf5 {[%emt 0:00:09]} 18. Rd7 {[%emt 0:01:05]} Nxg3 {[%emt 0:00:02]} 19. fxg3 {[%emt 0:00:01]} Bd6 {[%emt 0:00:01]} 20. R7xd6 {[%emt 0:00:39]} cxd6 {[%emt 0:00:02]} 21. Rxd6 {[%emt 0:00:14]} Ke7 {[%emt 0:00:09]} 22. c4 {[%emt 0:01:51]} Rhc8 {[%emt 0:00:02]} 23. b3 {[%emt 0:01:08]} Rc5 {[%emt 0:00:01]} 24. Rb6 {[%emt 0:00:02]} Rxe5 {[%emt 0:00:10]} 25. b4 {[%emt 0:01:16]} Kd7 {[%emt 0:00:26]} 26. c5 {[%emt 0:00:24]} Kc7 {[%emt 0:00:09]} 27. Bh5 {[%emt 0:00:55]} Re1+ {[%emt 0:00:14]} 28. Kh2 {[%emt 0:00:17]} Rf1 {[%emt 0:00:02]} 29. Bf3 {[%emt 0:00:12]} Rf2 {[%emt 0:00:06]} 30. a4 {[%emt 0:00:13]} Ra2 {[%emt 0:01:47]} 31. a5 {[%emt 0:00:05]} Rb2 {[%emt 0:00:02]} 32. g4 {[%emt 0:01:08]} Rb1 {[%emt 0:00:03]} 33. Be4 {[%emt 0:00:16]} Rc1 {[%emt 0:00:18]} 34. Bf3 {[%emt 0:00:02]} Rc2 {[%emt 0:00:08]} 35. Be4 {[%emt 0:00:02]} Rc4 {[%emt 0:00:02]} 36. Bf3 {[%emt 0:00:02]} e5 {[%emt 0:00:25]} 37. Bd5 {[%emt 0:00:15]} Rd4 {[%emt 0:00:02]} 38. Bxf7 {[%emt 0:00:47]} Rf8 {[%emt 0:00:00]} 39. Bb3 {[%emt 0:01:01]} Re8 {[%emt 0:00:42]} 40. Ba4 {[%emt 0:00:12]} Re7 {[%emt 0:00:01]} 41. c6 {[%emt 0:00:22]} bxc6 {[%emt 0:00:01]} 42. Rxc6+ {[%emt 0:00:01]} Kb7 {[%emt 0:00:01]} 43. Rb6+ {[%emt 0:00:05]} Ka7 {[%emt 0:00:00]} 44. Rxh6 {[%emt 0:00:47]} e4 {[%emt 0:00:01]} 45. Bc6 {[%emt 0:00:27]} e3 {[%emt 0:00:03]} 46. Bf3 {[%emt 0:00:05]} e2 {[%emt 0:00:01]} 47. Bxe2 Rxe2 {[%emt 0:00:01]} 48. Rh7+ {[%emt 0:00:03]} Kb8 {[%emt 0:00:00]} 49. Rh6 {[%emt 0:00:19]} Kb7 {[%emt 0:00:01]} 50. Rh7+ {[%emt 0:00:01]} Kc6 {[%emt 0:00:01]} 51. Ra7 {[%emt 0:00:17]} Kb5 {[%emt 0:00:01]} 52. Rb7+ {[%emt 0:00:01]} Ka4 {[%emt 0:00:01]} 53. Rb6 {[%emt 0:00:03]} Rxb4 {[%emt 0:00:02]} 54. Rxa6 {[%emt 0:00:01]} Rbb2 {[%emt 0:00:01]} 55. Rb6 {[%emt 0:00:31]} Rxg2+ {[%emt 0:00:04]} 56. Kh1 {[%emt 0:00:01]} Rxb6 {[%emt 0:00:02]} 57. axb6 {[%emt 0:00:01]} Rb2 {[%emt 0:00:02]} 58. b7 {[%emt 0:00:18]} Rxb7 {[%emt 0:00:03]} 59. Kg2 {[%emt 0:00:02]} Rh7 {[%emt 0:00:02]} 0-1

[Event "Hungarian Rapid-ch 2022"]
[Site "Ajka"]
[Date "2022.07.16"]
[Round "5.19"]
[White "Lazarne Vajda, Szidonia"]
[Black "Benedek, Istvan"]
[Result "1/2-1/2"]
[ECO "B40"]
[WhiteElo "2313"]
[BlackElo "2059"]
[Annotator "ChessBase"]
[PlyCount "192"]
[EventDate "2022.07.15"]
[EventType "swiss"]
[EventCountry "HUN"]
[SourceTitle "playchess.com"]
[Source "ChessBase"]
[SourceQuality "1"]
[TimeControl "900+10"]

1. e4 {[%emt 0:00:12]} c5 {[%emt 0:00:12]} 2. Nf3 {[%emt 0:00:04]} e6 {[%emt 0:00:05]} 3. c3 {[%emt 0:00:08]} Nf6 {[%emt 0:00:06]} 4. e5 {[%emt 0:00:07]} Nd5 {[%emt 0:00:02]} 5. d4 {[%emt 0:00:04]} cxd4 {[%emt 0:00:03]} 6. cxd4 {[%emt 0:00:02]} b6 {[%emt 0:00:20]} 7. Nc3 {[%emt 0:00:32]} Nxc3 {[%emt 0:00:26]} 8. bxc3 {[%emt 0:00:01]} Bb7 {[%emt 0:00:07]} 9. Bd3 {[%emt 0:00:39]} Qc7 {[%emt 0:00:09]} 10. Bd2 {[%emt 0:00:12]} d6 {[%emt 0:00:17]} 11. O-O {[%emt 0:00:41]} Nd7 {[%emt 0:00:05]} 12. Re1 {[%emt 0:03:00]} dxe5 {[%emt 0:00:19]} 13. Nxe5 {[%emt 0:00:22]} Nxe5 {[%emt 0:00:37]} 14. Rxe5 {[%emt 0:00:41]} Bd6 {[%emt 0:00:05]} 15. Bb5+ {[%emt 0:00:59]} Kf8 {[%emt 0:01:47]} 16. Rh5 {[%emt 0:00:15]} Bf4 {[%emt 0:00:41]} 17. Rh3 {[%emt 0:02:09]} g6 {[%emt 0:00:35]} 18. Qc1 {[%emt 0:00:21]} Bxd2 {[%emt 0:00:24]} 19. Qxd2 {[%emt 0:00:00]} h5 {[%emt 0:00:11]} 20. Re1 {[%emt 0:00:47]} Kg7 {[%emt 0:00:16]} 21. Bd3 {[%emt 0:00:09]} Rac8 {[%emt 0:00:45]} 22. Bb1 {[%emt 0:00:12]} Qd6 {[%emt 0:01:47]} 23. Qg5 {[%emt 0:00:28]} Qd8 {[%emt 0:00:52]} 24. Qe5+ {[%emt 0:01:17]} Qf6 {[%emt 0:00:11]} 25. f4 {[%emt 0:00:52]} Rc4 {[%emt 0:00:23]} 26. Ree3 {[%emt 0:00:39]} Bd5 {[%emt 0:00:20]} 27. Bc2 {[%emt 0:00:24]} Rc6 {[%emt 0:01:03]} 28. Bb3 {[%emt 0:00:02]} Qxe5 {[%emt 0:01:28]} 29. fxe5 {[%emt 0:00:14]} Rd8 {[%emt 0:00:20]} 30. Re1 {[%emt 0:01:07]} b5 {[%emt 0:00:37]} 31. Rhe3 {[%emt 0:01:37]} Bxb3 {[%emt 0:01:38]} 32. axb3 b4 {[%emt 0:00:23]} 33. cxb4 {[%emt 0:00:22]} Rxd4 {[%emt 0:00:01]} 34. Ra1 {[%emt 0:00:01]} a6 {[%emt 0:01:58]} 35. Ra4 {[%emt 0:00:02]} Rb6 {[%emt 0:00:22]} 36. b5 {[%emt 0:00:21]} Rd1+ {[%emt 0:00:55]} 37. Kf2 {[%emt 0:00:01]} Rxb5 {[%emt 0:00:12]} 38. Rxa6 {[%emt 0:00:09]} Rdd5 {[%emt 0:00:01]} 39. Ra7 {[%emt 0:01:02]} Rxe5 {[%emt 0:00:02]} 40. Rxe5 {[%emt 0:00:02]} Rxe5 {[%emt 0:00:02]} 41. Rb7 {[%emt 0:00:02]} Ra5 {[%emt 0:00:35]} 42. b4 {[%emt 0:00:22]} Ra3 {[%emt 0:00:02]} 43. b5 {[%emt 0:00:19]} Rb3 {[%emt 0:00:06]} 44. b6 {[%emt 0:00:09]} e5 {[%emt 0:00:05]} 45. Rb8 {[%emt 0:00:04]} Kf6 {[%emt 0:00:18]} 46. Ke2 {[%emt 0:00:07]} e4 {[%emt 0:00:23]} 47. Kd2 {[%emt 0:00:34]} e3+ {[%emt 0:00:13]} 48. Ke2 {[%emt 0:00:06]} h4 {[%emt 0:00:43]} 49. b7 {[%emt 0:00:09]} g5 {[%emt 0:00:08]} 50. Re8 {[%emt 0:00:25]} Rxb7 {[%emt 0:00:07]} 51. Rxe3 {[%emt 0:00:07]} g4 {[%emt 0:00:14]} 52. Ra3 {[%emt 0:00:05]} Rb2+ {[%emt 0:00:02]} 53. Kf1 {[%emt 0:00:03]} Kg5 {[%emt 0:00:13]} 54. Ra4 {[%emt 0:00:24]} f5 {[%emt 0:00:30]} 55. Rc4 {[%emt 0:00:00]} h3 {[%emt 0:00:07]} 56. gxh3 {[%emt 0:00:13]} gxh3 {[%emt 0:00:01]} 57. Kg1 {[%emt 0:00:00]} f4 {[%emt 0:00:05]} 58. Rc3 {[%emt 0:00:14]} Kg4 {[%emt 0:00:02]} 59. Rc4 {[%emt 0:00:00]} Rg2+ {[%emt 0:00:04]} 60. Kh1 {[%emt 0:00:01]} Re2 {[%emt 0:00:01]} 61. Kg1 {[%emt 0:00:01]} Kf3 {[%emt 0:00:02]} 62. Rc3+ {[%emt 0:00:14]} Re3 {[%emt 0:00:01]} 63. Rc1 {[%emt 0:00:00]} Ke2 {[%emt 0:00:38]} 64. Ra1 {[%emt 0:00:13]} Rd3 {[%emt 0:00:18]} 65. Ra2+ {[%emt 0:00:06]} Ke3 {[%emt 0:00:02]} 66. Ra1 {[%emt 0:00:05]} f3 {[%emt 0:00:19]} 67. Kf1 {[%emt 0:00:40]} Ke4 {[%emt 0:00:35]} 68. Ra4+ {[%emt 0:00:02]} Rd4 {[%emt 0:00:02]} 69. Ra1 {[%emt 0:00:01]} Kf4 {[%emt 0:00:02]} 70. Rb1 {[%emt 0:00:04]} Rd2 {[%emt 0:00:06]} 71. Rb4+ {[%emt 0:00:07]} Ke3 {[%emt 0:00:01]} 72. Rb3+ {[%emt 0:00:01]} Rd3 {[%emt 0:00:02]} 73. Rb1 {[%emt 0:00:00]} Rd2 {[%emt 0:00:10]} 74. Rb3+ {[%emt 0:00:02]} Kf4 {[%emt 0:00:02]} 75. Rb4+ {[%emt 0:00:01]} Ke5 {[%emt 0:00:03]} 76. Rb3 {[%emt 0:00:04]} Ke4 {[%emt 0:00:14]} 77. Rb4+ {[%emt 0:00:00]} Ke3 {[%emt 0:00:16]} 78. Rb3+ {[%emt 0:00:02]} Rd3 79. Rb1 Ra3 {[%emt 0:00:06]} 80. Rc1 {[%emt 0:00:14]} Ra2 {[%emt 0:00:18]} 81. Rc3+ {[%emt 0:00:11]} Ke4 {[%emt 0:00:01]} 82. Kg1 {[%emt 0:00:10]} Rg2+ {[%emt 0:00:06]} 83. Kh1 {[%emt 0:00:01]} Re2 {[%emt 0:00:05]} 84. Kg1 {[%emt 0:00:02]} Re3 {[%emt 0:00:37]} 85. Rc4+ {[%emt 0:00:43]} Kd3 {[%emt 0:00:03]} 86. Ra4 {[%emt 0:00:08]} Re4 {[%emt 0:00:31]} 87. Ra3+ {[%emt 0:00:10]} Ke2 {[%emt 0:00:01]} 88. Ra2+ {[%emt 0:00:00]} Ke3 {[%emt 0:00:02]} 89. Ra3+ {[%emt 0:00:01]} Kf4 {[%emt 0:00:02]} 90. Ra1 {[%emt 0:00:00]} Rd4 {[%emt 0:00:33]} 91. Rb1 {[%emt 0:00:02]} Ke3 {[%emt 0:00:03]} 92. Rb3+ {[%emt 0:00:00]} Rd3 {[%emt 0:00:02]} 93. Rb1 {[%emt 0:00:12]} f2+ {[%emt 0:00:14]} 94. Kf1 {[%emt 0:00:05]} Kf3 {[%emt 0:00:55]} 95. Rb3 {[%emt 0:00:03]} Re3 {[%emt 0:00:06]} 96. Rxe3+ {[%emt 0:00:11]} Kxe3 1/2-1/2